bitfinex/quotes_SOLUSD_20250626
["timestamp","ask_amount","ask_price","bid_price","bid_amount"]
[1750969600731,28.7,142.53,142.5,6.75530869]
[1750969600930,28.7,142.53,142.51,6.75530869]
[1750969602522,0.04,142.56,142.52,6.75530869]
[1750969602831,0.04,142.56,142.49,94.3334]
[1750969602832,0.04,142.56,142.53,6.75530869]
[1750969603140,0.04,142.56,142.5,90.10175438]
[1750969603323,0.04,142.56,142.52,6.75530869]
[1750969603524,0.04,142.56,142.53,6.75530869]
[1750969605135,0.04,142.56,142.52,6.75530869]
[1750969605939,0.04,142.56,142.5,90.10175438]
[1750969606239,0.04,142.56,142.52,6.75530869]
[1750969608336,0.04,142.56,142.54,6.75530869]
[1750969608839,0.04,142.56,142.53,6.75530869]
[1750969614141,0.04,142.56,142.54,6.75530869]
[1750969622252,0.04,142.56,142.54,4.32747448]
[1750969624362,0.04,142.56,142.5,91.76805438]
[1750969624537,0.04,142.56,142.54,4.32747448]
[1750969626367,0.04,142.56,142.55,4.32747448]
[1750969630357,0.04,142.56,142.55,6.75966606]
[1750969648476,0.04,142.56,142.52,96.2616559]
[1750969648654,0.04,142.56,142.55,6.75966606]
[1750969650275,0.04,142.56,142.55,4.32597773]
[1750969661375,0.04,142.56,142.52,96.2616559]
[1750969661571,4.32597773,142.55,142.5,89.4]
[1750969661776,4.32597773,142.55,142.51,4.32597773]
[1750969662892,11.66489121,142.56,142.51,4.32597773]
[1750969663574,11.66489121,142.56,142.52,4.32597773]
[1750969665372,0.32432314,142.56,142.53,4.32597773]
[1750969667564,0.04,142.56,142.53,4.32597773]
[1750969667766,0.04,142.56,142.54,4.32597773]
[1750969668066,0.04,142.56,142.55,4.32597773]
[1750969677415,0.04,142.56,142.54,4.32597773]
[1750969677975,0.04,142.56,142.51,95.56]
[1750969678178,0.04,142.56,142.53,4.32597773]
[1750969686779,0.04,142.56,142.54,4.32597773]
[1750969687287,0.04,142.56,142.51,95.56]
[1750969687288,0.04,142.56,142.53,4.32597773]
[1750969688007,0.04,142.56,142.51,95.56]
[1750969688218,0.04,142.56,142.53,4.32597773]
[1750969689613,0.04,142.56,142.51,95.56]
[1750969689614,6.19330087,142.55,142.51,6.16]
[1750969689793,0.28432314,142.52,142.49,68.3334]
[1750969689993,4.32597773,142.51,142.49,68.3334]
[1750969691087,11.34346368,142.51,142.49,68.3334]
[1750969691283,0.28432314,142.5,142.49,68.3334]
[1750969691490,4.61030087,142.5,142.49,68.3334]
[1750969692390,7.05429227,142.5,142.49,68.3334]
[1750969692895,7.30186699,142.5,142.49,68.3334]
[1750969693892,14.07183612,142.5,142.49,68.3334]
[1750969694289,42.87399769,142.5,142.49,68.3334]
[1750969699408,67.04040798,142.5,142.49,68.3334]
[1750969699610,67.04040798,142.5,142.49,66.6668]
[1750969703633,14.90672551,142.51,142.49,66.6668]
[1750969703817,28.66,142.5,142.49,66.6668]
[1750969704506,28.94432314,142.5,142.49,66.6668]
[1750969705639,35.96186699,142.5,142.49,66.6668]
[1750969706902,42.73183612,142.5,142.49,66.6668]
[1750969707102,42.87399769,142.5,142.49,66.6668]
[1750969708905,36.10402856,142.5,142.49,66.6668]
[1750969709105,28.94432314,142.5,142.49,66.6668]
[1750969709630,28.80216157,142.5,142.49,66.6668]
[1750969710015,28.94432314,142.5,142.49,66.6668]
[1750969710530,6.5044,142.54,142.49,73.43676913]
[1750969710703,28.66,142.53,142.51,6.76996913]
[1750969710908,0.28432314,142.52,142.51,6.76996913]
[1750969711124,0.14216157,142.54,142.51,6.76996913]
[1750969711309,28.66,142.53,142.52,6.76996913]
[1750969712451,28.66,142.55,142.52,6.76996913]
[1750969712622,28.66,142.55,142.54,6.76996913]
[1750969712923,28.66,142.55,142.53,6.76996913]
[1750969714501,0.04,142.56,142.54,6.76996913]
[1750969714731,28.7,142.56,142.55,6.76996913]
[1750969715313,28.7,142.56,142.54,6.76996913]
[1750969717529,28.7,142.56,142.55,6.76996913]
[1750969719415,28.7,142.56,142.5,97.1536]
[1750969719628,28.7,142.56,142.53,6.76996913]
[1750969720019,28.7,142.56,142.54,6.76996913]
[1750969722150,28.7,142.56,142.55,6.76996913]
[1750969723437,0.04,142.56,142.55,6.76996913]
[1750969724137,0.04,142.56,142.54,6.76996913]
[1750969725547,28.68,142.56,142.54,6.76996913]
[1750969728449,28.68,142.56,142.55,6.76996913]
[1750969728450,0.04,142.56,142.55,6.76996913]
[1750969732957,0.04,142.6,142.55,6.76996913]
[1750969732958,0.04,142.6,142.58,26.0]
[1750969733158,0.04,142.6,142.59,7.47128058]
[1750969733543,0.04,142.61,142.6,25.10734886]
[1750969733856,0.04,142.61,142.6,33.47051799]
[1750969734168,0.04,142.61,142.6,122.87051799]
[1750969734460,0.04,142.61,142.6,129.88314071]
[1750969734767,0.04,142.61,142.6,122.87051799]
[1750969735853,0.04,142.61,142.6,104.22086913]
[1750969736043,0.04,142.61,142.6,97.76316913]
[1750969737269,0.04,142.61,142.6,116.41281799]
[1750969738036,0.04,142.62,142.61,18.64964886]
[1750969738229,0.04,142.62,142.61,115.66299265]
[1750969742266,0.04,142.62,142.61,115.52083108]
[1750969742458,0.04,142.62,142.61,89.4]
[1750969742660,0.04,142.62,142.61,96.16996913]
[1750969742872,0.04,142.62,142.61,6.76996913]
[1750969746544,0.04,142.62,142.6,6.76996913]
[1750969749370,0.04,142.62,142.58,6.14]
[1750969749546,6.76996913,142.6,142.58,6.14]
[1750969749747,6.76996913,142.6,142.55,6.76996913]
[1750969749950,6.76996913,142.6,142.55,96.16996913]
[1750969750265,6.76996913,142.6,142.56,6.76996913]
[1750969750464,13.78269663,142.6,142.56,6.76996913]
[1750969751065,6.76996913,142.6,142.56,6.76996913]
[1750969751780,13.78231701,142.61,142.56,6.76996913]
[1750969752448,13.78231701,142.61,142.55,89.4]
[1750969752668,13.78231701,142.61,142.57,6.76996913]
[1750969752869,7.05178817,142.62,142.59,6.76996913]
[1750969753071,13.8217573,142.62,142.58,6.76996913]
[1750969760973,13.8217573,142.62,142.57,6.76996913]
[1750969761187,7.05429227,142.6,142.56,6.76996913]
[1750969761486,0.28432314,142.6,142.53,121.54]
[1750969761665,0.28432314,142.6,142.56,6.76996913]
[1750969763162,7.29713238,142.6,142.56,6.76996913]
[1750969763572,13.78228118,142.61,142.57,6.76996913]
[1750969771993,0.28432314,142.61,142.53,121.54]
[1750969772301,7.05429227,142.61,142.57,6.76996913]
[1750969772714,14.06643331,142.61,142.57,6.76996913]
[1750969777813,6.76996913,142.6,142.56,6.76996913]
[1750969778016,7.05429227,142.59,142.54,6.76996913]
[1750969779540,7.01459034,142.56,142.52,0.02]
[1750969779711,6.76996913,142.55,142.52,0.02]
[1750969780330,6.76996913,142.54,142.52,0.02]
[1750969780918,7.05429227,142.55,142.52,0.02]
[1750969781522,14.06975941,142.55,142.52,0.02]
[1750969784133,6.76996913,142.54,142.52,0.02]
[1750969784338,7.05429227,142.53,142.52,0.02]
[1750969786239,14.07035906,142.53,142.52,0.02]
[1750969788041,6.4834,142.56,142.52,0.02]
[1750969788241,6.9121307,142.55,142.52,0.02]
[1750969789164,13.92735711,142.55,142.52,0.02]
[1750969791261,1.71916157,142.58,142.52,0.02]
[1750969791451,0.28432314,142.57,142.54,6.76996913]
[1750969791655,7.05429227,142.57,142.53,6.76996913]
[1750969792749,14.06845815,142.57,142.53,6.76996913]
[1750969795177,14.06845815,142.57,142.52,6.78996913]
[1750969795743,14.06845815,142.57,142.52,0.02]
[1750969795948,14.06845815,142.57,142.53,6.76996913]
[1750969797475,7.05429227,142.57,142.53,6.76996913]
[1750969798192,1.6068,142.62,142.55,6.76996913]
[1750969798349,0.04,142.62,142.56,0.70145903]
[1750969798667,0.04,142.62,142.55,6.14]
[1750969798668,7.05429227,142.61,142.57,6.76996913]
[1750969798873,6.76996913,142.61,142.57,6.76996913]
[1750969799074,6.80996913,142.62,142.58,6.76996913]
[1750969799370,0.04,142.62,142.6,6.76996913]
[1750969800859,0.04,142.62,142.59,6.76996913]
[1750969802871,0.04,142.62,142.55,25.4911571]
[1750969803174,6.76996913,142.61,142.57,6.76996913]
[1750969803379,13.78228721,142.61,142.56,6.76996913]
[1750969804980,13.78228721,142.61,142.57,6.76996913]
[1750969806769,0.04,142.62,142.6,6.76996913]
[1750969809460,6.76996913,142.61,142.56,95.54]
[1750969809659,6.76996913,142.61,142.57,6.76996913]
[1750969810484,6.80996913,142.62,142.57,6.76996913]
[1750969810675,0.04,142.62,142.57,6.76996913]
[1750969810879,6.80996913,142.62,142.58,6.76996913]
[1750969811064,6.80996913,142.62,142.56,95.54]
[1750969811268,6.80996913,142.62,142.58,6.76996913]
[1750969811681,13.82167972,142.62,142.58,6.76996913]
[1750969811859,7.05171059,142.62,142.58,6.76996913]
[1750969812059,13.82167972,142.62,142.58,6.76996913]
[1750969813484,13.82167972,142.62,142.56,95.54]
[1750969813812,13.82167972,142.62,142.57,6.76996913]
[1750969814164,7.05429227,142.61,142.56,102.30996913]
[1750969814379,6.76996913,142.6,142.56,102.30996913]
[1750969814580,7.05429227,142.61,142.57,6.76996913]
[1750969814781,7.05429227,142.61,142.56,95.54]
[1750969814966,6.76996913,142.59,142.56,95.54]
[1750969818887,6.76996913,142.58,142.56,6.14]
[1750969819092,0.04,142.62,142.57,6.76996913]
[1750969819290,0.04,142.62,142.59,6.76996913]
[1750969819509,7.05166414,142.62,142.59,6.76996913]
[1750969821331,7.05166414,142.62,142.58,6.76996913]
[1750969821511,0.04,142.62,142.58,6.76996913]
[1750969821717,0.04,142.62,142.59,6.76996913]
[1750969822029,0.04,142.62,142.61,6.76996913]
[1750969822993,0.04,142.62,142.6,6.76996913]
[1750969823691,0.04,142.62,142.61,6.76996913]
[1750969824196,0.04,142.62,142.6,6.76996913]
[1750969824514,0.04,142.62,142.59,6.76996913]
[1750969824714,0.04,142.62,142.6,6.76996913]
[1750969825123,0.04,142.62,142.61,6.76996913]
[1750969837524,0.04,142.62,142.61,96.16996913]
[1750969837923,0.04,142.62,142.61,89.4]
[1750969839136,0.04,142.62,142.61,96.16996913]
[1750969839446,0.04,142.62,142.59,6.76996913]
[1750969840966,0.32432314,142.62,142.58,122.16996913]
[1750969841144,6.80996913,142.62,142.58,122.16996913]
[1750969841343,6.80996913,142.62,142.58,96.16996913]
[1750969842471,6.76996913,142.61,142.57,12.92996913]
[1750969844865,7.05195125,142.62,142.57,12.92996913]
[1750969844866,0.32432314,142.62,142.59,6.76996913]
[1750969846040,0.04,142.62,142.59,6.76996913]
[1750969847758,0.04,142.62,142.6,6.76996913]
[1750969848659,0.04,142.62,142.58,18.64964886]
[1750969848660,0.04,142.62,142.61,6.76996913]
[1750969852261,0.04,142.62,142.61,96.16996913]
[1750969853381,0.04,142.62,142.61,26.12083108]
[1750969853685,0.04,142.62,142.61,115.66299265]
[1750969854787,0.04,142.62,142.61,115.52083108]
[1750969857600,0.04,142.62,142.61,122.67512363]
[1750969859387,0.04,142.62,142.61,115.9051545]
[1750969859711,0.04,142.62,142.61,115.66299265]
[1750969863894,0.04,142.62,142.61,115.52083108]
[1750969865598,0.04,142.62,142.61,6.76996913]
[1750969870901,0.04,142.62,142.61,26.12083108]
[1750969871200,0.04,142.62,142.61,26.26299265]
[1750969871411,0.04,142.62,142.61,115.66299265]
[1750969871817,0.04,142.62,142.61,122.67512363]
[1750969872819,0.04,142.64,142.62,18.79181043]
[1750969873024,0.04,142.64,142.63,27.53436232]
[1750969873401,0.04,142.64,142.63,135.58401118]
[1750969878430,0.04,142.66,142.63,177.95833432]
[1750969878730,0.04,142.66,142.65,25.56177956]
[1750969878932,0.04,142.66,142.65,115.66279603]
[1750969879416,0.04,142.67,142.66,18.64964886]
[1750969879615,0.04,142.68,142.67,0.14216157]
[1750969879815,0.04,142.68,142.67,18.64964886]
[1750969880028,0.04,142.68,142.67,25.41961799]
[1750969880629,0.04,142.68,142.66,0.70096733]
[1750969880815,0.04,142.68,142.67,32.76996913]
[1750969881413,0.04,142.68,142.67,26.0]
[1750969881629,0.04,142.68,142.67,32.76996913]
[1750969882514,0.04,142.68,142.67,26.0]
[1750969883616,0.04,142.68,142.67,32.76996913]
[1750969885222,0.04,142.68,142.67,26.0]
[1750969885434,0.04,142.68,142.67,6.76996913]
[1750969887934,0.04,142.68,142.64,44.64964886]
[1750969888137,0.04,142.68,142.66,6.76996913]
[1750969888645,0.04,142.68,142.67,6.76996913]
[1750969892163,0.04,142.68,142.65,18.64964886]
[1750969892336,0.04,142.68,142.67,6.76996913]
[1750969894265,0.04,142.68,142.65,18.64964886]
[1750969894964,0.04,142.68,142.67,6.76996913]
[1750969896081,0.04,142.68,142.66,6.76996913]
[1750969898125,0.04,142.68,142.65,6.76996913]
[1750969900313,0.04,142.68,142.66,6.76996913]
[1750969900532,0.04,142.68,142.67,6.76996913]
[1750969900702,0.04,142.68,142.66,6.76996913]
[1750969901535,0.04,142.68,142.65,6.76996913]
[1750969902761,0.04,142.68,142.66,6.76996913]
[1750969903330,0.04,142.68,142.67,6.76996913]
[1750969911031,0.04,142.68,142.67,141.52053619]
[1750969911227,0.04,142.68,142.67,147.97096158]
[1750969913226,0.04,142.68,142.67,114.81961799]
[1750969913430,0.04,142.68,142.67,115.52053619]
[1750969914945,0.04,142.68,142.67,122.52971821]
[1750969915117,0.04,142.68,142.67,122.95620292]
[1750969915824,0.04,142.7,142.69,44.64964886]
[1750969916024,0.04,142.7,142.69,147.66043794]
[1750969916246,0.04,142.7,142.69,146.95961799]
[1750969916845,0.04,142.72,142.7,18.64964886]
[1750969917030,0.04,142.72,142.71,14.24066]
[1750969917741,0.04,142.72,142.71,7.47069087]
[1750969918240,0.04,142.72,142.71,40.324011]
[1750969918446,0.04,142.74,142.73,51.41961799]
[1750969919222,0.04,142.74,142.72,89.4]
[1750969919419,0.04,142.74,142.73,6.76996913]
[1750969921248,0.04,142.74,142.73,25.41961799]
[1750969922234,0.04,142.74,142.73,6.76996913]
[1750969922953,0.04,142.74,142.7,18.64964886]
[1750969923155,0.04,142.74,142.69,95.54]
[1750969923329,0.04,142.74,142.72,6.76996913]
[1750969923535,0.04,142.74,142.71,6.76996913]
[1750969924655,0.04,142.74,142.69,32.14]
[1750969924656,0.04,142.74,142.73,6.76996913]
[1750969927329,0.04,142.74,142.73,51.41961799]
[1750969928230,0.04,142.74,142.73,147.82585353]
[1750969928434,0.04,142.75,142.74,18.64964886]
[1750969928643,0.04,142.75,142.74,115.2461027]
[1750969929343,0.04,142.75,142.74,122.25184741]
[1750969929662,0.04,142.75,142.74,115.94667717]
[1750969930286,0.04,142.75,142.74,122.95242188]
[1750969931365,0.04,142.75,142.74,115.94667717]
[1750969932345,0.04,142.75,142.74,115.52019246]
[1750969932546,0.04,142.75,142.74,114.81961799]
[1750969935865,0.04,142.75,142.74,115.52019246]
[1750969937048,0.04,142.76,142.74,122.95242188]
[1750969937248,0.04,142.76,142.75,12.88996913]
[1750969938159,0.04,142.76,142.75,102.28996913]
[1750969941154,0.04,142.76,142.75,109.29522307]
[1750969942572,0.04,142.76,142.75,112.86336597]
[1750969944653,0.04,142.76,142.75,105.85811203]
[1750969944854,0.04,142.76,142.75,112.86336597]
[1750969947669,0.04,142.76,142.75,154.95336597]
[1750969947859,0.04,142.76,142.75,112.86336597]
[1750969950651,0.04,142.76,142.75,131.93949954]
[1750969950852,1.5250044,142.78,142.77,44.64964886]
[1750969951165,1.5250044,142.78,142.77,52.54652996]
[1750969952671,1.5250044,142.78,142.77,59.55080256]
[1750969955778,0.04,142.81,142.77,59.55080256]
[1750969956074,0.04,142.81,142.79,25.41961799]
[1750969956270,0.04,142.81,142.79,114.81961799]
[1750969958463,0.04,142.81,142.79,108.04964886]
[1750969958764,0.04,142.81,142.79,114.81961799]
[1750969964179,1.5993,142.8,142.78,6.76996913]
[1750969964385,1.5993,142.8,142.76,18.64964886]
[1750969964685,1.5993,142.8,142.79,6.76996913]
[1750969966197,1.5993,142.8,142.79,32.76996913]
[1750969968598,1.5993,142.8,142.78,26.0]
[1750969968889,1.5993,142.8,142.79,6.76996913]
[1750969970786,1.5993,142.8,142.79,32.76996913]
[1750969971481,1.5993,142.8,142.79,26.0]
[1750969971694,1.5993,142.8,142.79,32.76996913]
[1750969972287,0.04,142.8,142.79,25.41961799]
[1750969973897,0.04,142.8,142.79,32.18958712]
[1750969974095,0.04,142.8,142.79,25.41961799]
[1750969974780,0.04,142.8,142.79,32.42290953]
[1750969974975,6.9991646,142.88,142.79,32.42290953]
[1750969974976,6.53423501,142.94,142.84,18.64964886]
[1750969975189,6.6223,142.9,142.88,6.76996913]
[1750969975496,7.8588,142.94,142.88,6.76996913]
[1750969975671,7.8588,142.94,142.91,6.76996913]
[1750969976381,7.8588,142.94,142.9,6.76996913]
[1750969976579,0.14216157,142.93,142.9,6.76996913]
[1750969976779,0.28432314,142.91,142.87,26.0]
[1750969976997,0.42648471,142.91,142.88,6.76996913]
[1750969977303,1.5614,142.9,142.87,32.76996913]
[1750969977598,1.5614,142.9,142.88,6.76996913]
[1750969978101,0.42648471,142.89,142.8,96.16996913]
[1750969978296,13.00766913,142.88,142.84,6.76996913]
[1750969978672,6.2377,142.88,142.85,6.76996913]
[1750969979075,1.5614,142.9,142.87,6.76996913]
[1750969979274,1.5614,142.9,142.85,26.0]
[1750969979275,1.5614,142.9,142.89,6.76996913]
[1750969980575,6.1555,142.92,142.85,44.64964886]
[1750969980770,6.1555,142.92,142.91,6.76996913]
[1750969984174,6.1555,142.92,142.89,26.0]
[1750969984374,6.1555,142.92,142.91,6.76996913]
[1750969984590,148.3,142.97,142.91,6.76996913]
[1750969984591,6.3644,142.98,142.94,26.0]
[1750969984789,1.5216,142.99,142.97,6.76996913]
[1750969984988,1.5216,142.99,142.98,6.76996913]
[1750969985193,1.5216,142.99,142.97,3.5121648]
[1750969985497,1.5216,142.99,142.98,6.76996913]
[1750969986988,6.3644,143.02,142.98,6.76996913]
[1750969987200,6.3644,143.02,143.01,6.76996913]
[1750969988202,6.3644,143.02,143.0,6.76996913]
[1750969988377,6.3644,143.02,142.96,32.76996913]
[1750969988573,6.3644,143.02,143.0,6.76996913]
[1750969990605,6.3644,143.02,143.01,6.76996913]
[1750969990785,6.3644,143.02,143.0,6.76996913]
[1750969992080,37.64979447,143.07,142.97,3.51387467]
[1750969992081,1.5250044,143.07,143.01,6.76996913]
[1750969992385,1.5250044,143.07,143.0,18.64964886]
[1750969992592,1.5250044,143.07,143.05,6.76996913]
[1750969993092,1.5250044,143.07,143.03,26.0]
[1750969993400,1.5250044,143.07,143.04,6.76996913]
[1750969993786,15.28467799,143.07,143.03,6.76996913]
[1750969994306,6.76996913,143.05,143.01,6.76996913]
[1750969994514,1.6356,143.04,143.0,6.76996913]
[1750969994882,1.6356,143.04,143.01,6.76996913]
[1750969995098,1.6356,143.04,143.02,6.76996913]
[1750969996591,1.6356,143.04,143.01,6.76996913]
[1750969996789,15.39664601,143.04,143.0,6.76996913]
[1750969996989,0.42648471,143.03,142.99,6.12]
[1750969997205,6.9121307,143.01,142.97,10.29852426]
[1750969997410,6.9121307,143.01,142.97,6.76996913]
[1750969997989,13.90481756,143.01,142.97,6.76996913]
[1750969998196,6.76996913,143.0,142.97,26.0]
[1750969998396,7.13484843,143.01,142.97,26.0]
[1750969998597,6.76996913,143.0,142.96,6.76996913]
[1750969999421,6.76996913,143.0,142.94,33.80661147]
[1750969999611,35.99484843,143.01,142.96,6.76996913]
[1750969999797,6.76996913,143.0,142.96,6.76996913]
[1750969999990,13.76321603,143.0,142.96,6.76996913]
[1750970000521,6.9932469,143.0,142.96,6.76996913]
[1750970000721,13.76321603,143.0,142.96,6.76996913]
[1750970001409,13.76321603,143.0,142.95,6.76996913]
[1750970001410,6.9121307,142.99,142.95,6.76996913]
[1750970002011,13.90601134,142.99,142.95,6.76996913]
[1750970003021,0.14216157,142.99,142.95,6.76996913]
[1750970003206,28.86,143.01,142.98,6.76996913]
[1750970004016,15.39680408,143.04,143.0,6.76996913]
[1750970004315,1.6356,143.04,143.01,6.76996913]
[1750970004504,1.6356,143.04,143.02,6.76996913]
[1750970004702,1.6356,143.04,143.01,6.76996913]
[1750970004911,1.5650044,143.07,142.97,18.64964886]
[1750970004912,9.96937353,143.07,143.03,6.76996913]
[1750970005093,0.42648471,143.06,143.03,6.76996913]
[1750970005296,9.96937353,143.07,143.04,6.76996913]
[1750970005297,1.5650044,143.07,143.04,6.76996913]
[1750970005916,8.55469239,143.07,143.04,6.76996913]
[1750970006922,1.5650044,143.07,143.04,6.76996913]
[1750970007440,1.5650044,143.07,143.06,26.0]
[1750970007598,1.5650044,143.07,143.06,6.76996913]
[1750970007921,8.50650536,143.18,143.12,26.0]
[1750970008124,1.5221,143.18,143.15,6.76996913]
[1750970008324,6.3978,143.19,143.17,6.76996913]
[1750970008499,13.38173046,143.19,143.16,6.76996913]
[1750970008699,13.38173046,143.19,143.15,6.76996913]
[1750970009004,20.15169959,143.19,143.15,6.76996913]
[1750970009207,13.38173046,143.19,143.12,32.76996913]
[1750970009518,6.3978,143.19,143.17,6.76996913]
[1750970009831,35.982896,143.21,143.18,6.76996913]
[1750970010016,6.982896,143.21,143.18,6.76996913]
[1750970010221,7.9239,143.22,143.15,26.0]
[1750970010424,6.98080279,143.25,143.18,26.0]
[1750970010928,24.58048008,143.26,143.22,10.04845253]
[1750970011129,0.04,143.25,143.22,26.0]
[1750970011613,0.04,143.25,143.24,10.04845253]
[1750970012019,0.04,143.25,143.24,16.76845253]
[1750970012220,19.26305693,143.36,143.28,26.0]
[1750970012419,19.26305693,143.36,143.27,26.0]
[1750970012420,24.41579856,143.35,143.27,26.0]
[1750970012626,24.41579856,143.35,143.28,18.64964886]
[1750970012627,54.43579856,143.35,143.28,18.64964886]
[1750970012803,10.04845253,143.29,143.22,26.0]
[1750970013129,10.04845253,143.3,143.25,10.04845253]
[1750970013313,18.64964886,143.31,143.22,26.0]
[1750970013314,18.79181043,143.34,143.22,26.0]
[1750970013628,10.04845253,143.3,143.23,18.64964886]
[1750970013932,18.64964886,143.34,143.29,10.04845253]
[1750970014127,39.3146044,143.36,143.31,10.04845253]
[1750970014332,31.6250044,143.36,143.33,10.04845253]
[1750970014506,8.50060158,143.36,143.3,18.64964886]
[1750970014706,18.54905411,143.36,143.31,26.0]
[1750970014908,1.5250044,143.36,143.31,26.0]
[1750970015105,8.50068865,143.36,143.31,26.0]
[1750970015310,18.54914118,143.36,143.32,10.04845253]
[1750970015548,18.54914118,143.36,143.31,10.04845253]
[1750970015758,1.5250044,143.36,143.32,10.04845253]
[1750970015909,1.5250044,143.36,143.31,26.0]
[1750970016341,8.50056328,143.36,143.31,26.0]
[1750970016515,10.04845253,143.35,143.31,36.04845253]
[1750970016847,10.04845253,143.32,143.29,26.0]
[1750970017029,0.42648471,143.35,143.29,26.0]
[1750970017222,30.52648471,143.35,143.3,10.04845253]
[1750970017427,10.04845253,143.34,143.3,10.04845253]
[1750970017722,10.04845253,143.31,143.26,7.06]
[1750970017925,10.04845253,143.29,143.26,7.06]
[1750970018104,10.04845253,143.3,143.26,17.10845253]
[1750970018306,10.04845253,143.31,143.27,10.04845253]
[1750970018533,10.04845253,143.32,143.27,10.04845253]
[1750970018833,6.9764197,143.34,143.27,10.04845253]
[1750970019015,10.04845253,143.32,143.27,10.04845253]
[1750970019835,10.04845253,143.31,143.27,10.04845253]
[1750970020035,0.42648471,143.33,143.27,10.04845253]
[1750970020036,10.04845253,143.32,143.27,10.04845253]
[1750970020219,17.02586702,143.32,143.27,10.04845253]
[1750970020426,6.97741449,143.32,143.26,7.06]
[1750970020623,17.02586702,143.32,143.27,10.04845253]
[1750970020815,10.04845253,143.3,143.26,17.10845253]
[1750970021218,10.04845253,143.3,143.26,7.06]
[1750970021548,8.53921449,143.32,143.25,10.04845253]
[1750970021756,10.04845253,143.3,143.26,10.04845253]
[1750970022117,10.04845253,143.3,143.22,44.64964886]
[1750970022313,10.04845253,143.3,143.25,10.04845253]
[1750970022538,10.04845253,143.28,143.22,26.0]
[1750970022740,10.04845253,143.27,143.22,10.04845253]
[1750970023240,17.02633265,143.31,143.26,10.04845253]
[1750970023623,10.04845253,143.3,143.22,18.64964886]
[1750970023824,10.04845253,143.29,143.25,10.04845253]
[1750970024626,1.5618,143.32,143.25,10.04845253]
[1750970024822,1.5618,143.32,143.26,10.04845253]
[1750970025015,11.61025253,143.32,143.27,10.04845253]
[1750970025331,11.61025253,143.32,143.26,10.04845253]
[1750970025332,10.04845253,143.3,143.26,10.04845253]
[1750970025640,10.04845253,143.31,143.22,18.64964886]
[1750970025832,10.04845253,143.31,143.26,10.04845253]
[1750970026941,10.04845253,143.3,143.26,10.04845253]
[1750970027149,10.04845253,143.3,143.22,18.64964886]
[1750970027150,10.04845253,143.3,143.25,10.04845253]
[1750970029027,8.53920946,143.32,143.26,10.04845253]
[1750970029236,11.61025253,143.32,143.27,10.04845253]
[1750970029437,10.04845253,143.3,143.23,44.64964886]
[1750970029744,10.04845253,143.25,143.21,43.10845253]
[1750970030043,10.04845253,143.23,143.21,7.06]
[1750970030234,10.04845253,143.23,143.16,18.47118798]
[1750970030559,6.328,143.27,143.16,18.47118798]
[1750970030560,1.6192,143.26,143.17,10.04845253]
[1750970030721,1.6192,143.26,143.18,10.04845253]
[1750970030722,10.04845253,143.22,143.18,10.04845253]
[1750970030921,10.04845253,143.21,143.17,10.64845253]
[1750970031358,10.04845253,143.19,143.17,0.6]
[1750970031526,10.04845253,143.18,143.14,10.04845253]
[1750970032520,18.79181043,143.24,143.17,10.04845253]
[1750970032521,0.14216157,143.24,143.17,10.04845253]
[1750970032727,10.04845253,143.21,143.17,10.04845253]
[1750970033029,10.04845253,143.2,143.16,10.04845253]
[1750970033749,10.04845253,143.19,143.15,10.04845253]
[1750970034924,10.04845253,143.2,143.15,10.04845253]
[1750970035255,10.04845253,143.2,143.16,10.04845253]
[1750970035627,6.98177756,143.23,143.16,10.04845253]
[1750970035829,10.04845253,143.2,143.16,10.04845253]
[1750970036044,6.98177756,143.23,143.16,10.04845253]
[1750970036358,10.04845253,143.22,143.17,10.04845253]
[1750970036656,10.04845253,143.2,143.15,10.04845253]
[1750970038060,10.04845253,143.19,143.15,10.04845253]
[1750970038554,6.98275333,143.21,143.15,10.04845253]
[1750970038731,10.04845253,143.19,143.15,10.04845253]
[1750970039127,10.04845253,143.2,143.15,10.04845253]
[1750970039559,6.98177756,143.23,143.17,10.04845253]
[1750970039738,10.04845253,143.21,143.14,26.0]
[1750970039936,6.98177756,143.23,143.16,10.04845253]